{"text_format":"3","workbook":"xlsx","n_sheets":3,"sheets":["Početak","Mesečni budžet za koledž","chart_calcs"],"not_rendered":{"charts":4,"defined_names":19},"read":"whole","date_system":"1900"}

{"sheet":"Početak","index":0,"n_rows":7,"n_cols":2,"rows_kept":7}
[null,"OSNOVNI PODACI O OVOM PREDLOŠKU"]
[null,"Koristite radni list „Mesečni budžet za koledž“ za praćenje prihoda, troškova i protoka novca."]
[null,"Unesite mesečne prihode i troškove za izračunavanje ukupnog prihoda i troškova."]
[null,"Protok novca se automatski izračunava i grafikon protoka novca se automatski ažurira."]
[null,"Izaberite klizač da biste dobili dijagrame prihoda, troškova i protoka novca za mesec i godinu."]
[null,"Napomena: "]
[null,"Dodatna uputstva navedena su u koloni A na radnom listu. Taj tekst je namerno skriven. Da biste uklonili tekst, izaberite kolonu A, a zatim izaberite stavku „IZBRIŠI“. Da biste otkrili tekst, izaberite kolonu A, a zatim promenite boju fonta."]

{"sheet":"Mesečni budžet za koledž","index":1,"n_rows":72,"n_cols":16,"rows_kept":72,"merged":[[5,1,14,3],[5,4,14,11],[5,12,13,15],[15,1,19,15],[20,1,21,15]]}
["Kreirajte mesečni budžet za fakultet u ovoj radnoj svesci. Naslov ovog radnog lista nalazi se u ćeliji B1 sa desne strane. Korisna uputstva o tome kako da koristite ovaj radni list nalaze se u ćelijama u ovoj koloni. Sledeće uputstvo se nalazi u ćeliji A4.","Mesečni budžet za koledž"]
[]
[]
["Oznaka „Predviđeni prihod“ nalazi se u ćeliji s desne strane, a oznaka „Predviđeni troškovi“ u ćeliji E4, dok se oznaka „Protok novca“ nalazi u ćeliji M4.",{"$f":"chart_calcs!$D$6","v":"prihod u january:"},null,null,{"$f":"chart_calcs!$D$7","v":"troškovi u january:"},{"$nulls":7},{"$f":"chart_calcs!$D$8","v":"protok gotovine u january:"}]
["Prihodi se automatski ažuriraju u ćeliji s desne strane, troškovi u ćeliji E5 i protok novca u ćeliji M5.",{"$f":"\" \"&chart_calcs!$F$6","v":{"$error":"#VALUE!"}},null,null,{"$f":"\" \"&chart_calcs!$F$7","v":{"$error":"#VALUE!"}},{"$nulls":7},{"$f":"\" \"&chart_calcs!$F$8","v":" 169 RSD"}]
["Prstenasti grafikon koji prikazuje rezime prihoda u ćeliji s desne strane, rezime troškova u ćeliji E6 i trakasti grafikon koji prikazuje pozitivni i negativni novčani tok u ćeliji M6 se automatski ažuriraju. Sledeće uputstvo se nalazi u ćeliji A17.","Prstenasti grafikon koji prikazuje rezime prihoda za izabrani mesec ili godinu nalazi se u ovoj ćeliji",null,null,"Prstenasti grafikon koji prikazuje rezime troškova za izabrani mesec ili godinu",{"$nulls":7},"Trakasti grafikon koji prikazuje pozitivni i negativni protok novca za izabrani mesec ili godinu se nalazi u ovoj ćeliji."]
{"$rows_empty":9}
[null,"Linijski grafikon koji prikazuje protok novca za izabrani mesec ili godinu nalazi se u ovoj ćeliji."]
["Linijski grafikon protoka novca nalazi se u ćeliji sa desne strane. Sledeće uputstvo se nalazi u ćeliji A21."]
[]
[]
[]
["Izaberite klizač s desne strane da biste dobili podatke i grafikone mesečnih ili godišnjih prihoda, troškova i novčanog toka. Sledeće uputstvo se nalazi u ćeliji A25.","Klizač se nalazi u ovoj ćeliji."]
[]
[]
[]
["Izaberite mesec u ćeliji sa desne strane Pritisnite tastere ALT+STRELICA NADOLE za opcije, a zatim tastere STRELICA NADOLE i ENTER da biste napravili izbor.","JAN"]
["Izabrani period će se automatski ažurirati u ćeliji P26.",{"$nulls":14},{"$f":"SelectedPeriod","v":"JAN "}]
["Oznake prikazane u ovom redu su: oznaka „Mesečni protok novca nakon troškova“ u ćeliji s desne strane, meseci u ćelijama od C27 do N27, godina u ćeliji O27 i procenat povećanja u ćeliji P27.","Mesečni protok novca nakon troškova",{"$f":"FirstMonth","v":"JAN "},{"$f":"NextMonth","v":"FEB "},"MAR ","APR ","MAY ","JUN ","JUL ","AUG ","SEP ","OCT ","NOV ","DEC ","GODINA  ","% POV "]
["Oznaka „Protok novca“ nalazi se u ćeliji s desne strane. Novčani tok za svaki mesec se automatski izračunava u ćelijama C28 do N28, godišnji iznos u ćeliji O28 i procenat povećanja u ćeliji P28. Mini-grafikon se automatski ažurira u ćeliji Q28.","Protok novca",{"$f":"C37-C72","v":169},69,192,199,204,{"v":-771,"d":"-771 "},124,154,{"v":-721,"d":"-721 "},109,34,{"v":-61,"d":"-61 "},{"$f":"SUM(C28:N28)","v":{"v":-299,"d":"-299 "}},{"$f":"INDEX($C28:$O28,,SelectedPeriodColumn)/INDEX($C$37:$O$37,,SelectedPeriodColumn)","v":{"v":0.13795918367346938,"d":"13.8%"}}]
["Oznaka „Kumulativnog protoka novca“ nalazi se u ćeliji s desne strane. Kumulativni protok novca za svaki mesec se automatski izračunava u ćelijama C29 do N29, godišnji iznos u ćeliji O29 i procenat povećanja u ćeliji P29. Mini-grafikon se automatski ažurira u ćeliji Q29. Sledeće uputstvo se nalazi u ćeliji A31.","Kumulativni protok novca",{"$f":"SUM($C$28:C$28)","v":169},{"$f":"SUM($C$28:D$28)","v":238},{"$f":"SUM($C$28:E$28)","v":430},{"$f":"SUM($C$28:F$28)","v":629},{"$f":"SUM($C$28:G$28)","v":833},{"$f":"SUM($C$28:H$28)","v":62},{"$f":"SUM($C$28:I$28)","v":186},{"$f":"SUM($C$28:J$28)","v":340},{"$f":"SUM($C$28:K$28)","v":{"v":-381,"d":"-381 "}},{"$f":"SUM($C$28:L$28)","v":{"v":-272,"d":"-272 "}},{"$f":"SUM($C$28:M$28)","v":{"v":-238,"d":"-238 "}},{"$f":"SUM($C$28:N$28)","v":{"v":-299,"d":"-299 "}}]
[]
["Oznaka „Mesečni prihod“ nalazi se u ćeliji s desne strane, meseci u ćelijama od C31 do N31, godina u ćeliji O31, i oznaka procenta povećanja u ćeliji P31. Unesite stavke mesečnih prihoda u ćelije od B32 do B36 i mesečne količine u ćelije od C32 do N36. Godišnji prihod se automatski izračunava u ćelijama O32 do O36 a procenat povećanja u ćelijama P32 do P36. Sledeće uputstvo se nalazi u ćeliji A37.","MESEČNI PRIHOD",{"$f":"FirstMonth","v":"JAN "},{"$f":"NextMonth","v":"FEB "},"MAR ","APR ","MAY ","JUN ","JUL ","AUG ","SEP ","OCT ","NOV ","DEC ","GODINA  ","% POV "]
[null,"Finansijska pomoć (donacije, stipendije, krediti) koji su vam isplaćeni",0,0,750,750,750,750,750,750,750,750,750,750,{"$f":"SUM(C32:N32)","v":{"v":7500,"d":"7,500"}},{"$f":"INDEX($C32:$O32,,SelectedPeriodColumn)/INDEX($C$37:$O$37,,SelectedPeriodColumn)","v":{"v":0,"d":"0.0%"}}]
[null,"Plate nakon oporezivanja",450,450,450,450,450,450,450,450,550,350,350,350,{"v":5200,"d":"5,200"},{"$f":"INDEX($C33:$O33,,SelectedPeriodColumn)/INDEX($C$37:$O$37,,SelectedPeriodColumn)","v":{"v":0.3673469387755102,"d":"36.7%"}}]
[null,"Finansijska pomoć od porodice",200,200,{"v":1000,"d":"1,000"},350,350,350,350,350,350,350,350,350,{"v":4550,"d":"4,550"},{"$f":"INDEX($C34:$O34,,SelectedPeriodColumn)/INDEX($C$37:$O$37,,SelectedPeriodColumn)","v":{"v":0.16326530612244897,"d":"16.3%"}}]
[null,"Isplate iz ušteđevine",500,350,150,0,0,0,0,0,0,0,0,0,{"v":1000,"d":"1,000"},{"$f":"INDEX($C35:$O35,,SelectedPeriodColumn)/INDEX($C$37:$O$37,,SelectedPeriodColumn)","v":{"v":0.40816326530612246,"d":"40.8%"}}]
[null,"Ostalo (podrška za dete, javnu pomoć, pokloni itd.)",75,75,75,75,75,75,75,75,75,75,75,75,900,{"$f":"INDEX($C36:$O36,,SelectedPeriodColumn)/INDEX($C$37:$O$37,,SelectedPeriodColumn)","v":{"v":0.061224489795918366,"d":"6.1%"}}]
["Oznaka „Ukupan prihod“ nalazi se u ćeliji sa desne strane. Ukupni prihodi za svaki mesec se automatski izračunava u ćelijama C37 do N37, godišnji prihod u ćeliji O37 i procenat povećanja u ćeliji P37. Mini-grafikon se automatski ažurira u ćeliji Q37. Sledeće uputstvo se nalazi u ćeliji A39.","UKUPAN PRIHOD",{"$f":"SUM(C32:C36)","v":{"v":1225,"d":"1,225"}},{"v":1075,"d":"1,075"},{"v":2425,"d":"2,425"},{"v":1625,"d":"1,625"},{"v":1625,"d":"1,625"},{"v":1625,"d":"1,625"},{"v":1625,"d":"1,625"},{"v":1625,"d":"1,625"},{"v":1725,"d":"1,725"},{"v":1525,"d":"1,525"},{"v":1525,"d":"1,525"},{"v":1525,"d":"1,525"},{"v":19150,"d":"19,150"},{"$f":"INDEX($C37:$O37,,SelectedPeriodColumn)/INDEX($C$37:$O$37,,SelectedPeriodColumn)","v":{"v":1,"d":"100.0%"}}]
[]
["Oznaka „Mesečni troškovi“ nalazi se u ćeliji s desne strane, meseci u ćelijama od C39 do N39, godina u ćeliji O39, i oznaka procenta povećanja u ćeliji P39.","MESEČNI TROŠAK",{"$f":"FirstMonth","v":"JAN "},{"$f":"NextMonth","v":"FEB "},"MAR ","APR ","MAY ","JUN ","JUL ","AUG ","SEP ","OCT ","NOV ","DEC ","GODINA  ","% POV "]
["Unesite ili izmenite stavku troškova u ćeliji s desne strane i mesečne iznose u ćelijama C40 do N43. Godišnji iznos se automatski izračunava u ćelijama O40 do O43 a procenat povećanja u ćelijama P40 do P43. Mini-grafikon se automatski ažurira u ćeliji Q40. Sledeće uputstvo se nalazi u ćeliji A45.","smeštaj i ishrana",{"$f":"SUM(C41:C43)","v":565},565,565,565,565,565,565,565,565,565,565,565,{"$f":"SUM(C40:N40)","v":{"v":6780,"d":"6,780"}},{"$f":"INDEX($C40:$O40,,SelectedPeriodColumn)/INDEX($C$72:$O$72,,SelectedPeriodColumn)","v":{"v":0.5350378787878788,"d":"53.5%"}}]
[null,null,315,315,315,315,315,315,315,315,315,315,315,315,{"$f":"SUM(C41:N41)","v":{"v":3780,"d":"3,780"}},{"$f":"INDEX($C41:$O41,,SelectedPeriodColumn)/INDEX($C$72:$O$72,,SelectedPeriodColumn)","v":{"v":0.29829545454545453,"d":"29.8%"}}]
[null,null,200,200,200,200,200,200,200,200,200,200,200,200,{"$f":"SUM(C42:N42)","v":{"v":2400,"d":"2,400"}},{"$f":"INDEX($C42:$O42,,SelectedPeriodColumn)/INDEX($C$72:$O$72,,SelectedPeriodColumn)","v":{"v":0.1893939393939394,"d":"18.9%"}}]
[null,null,50,50,50,50,50,50,50,50,50,50,50,50,{"$f":"SUM(C43:N43)","v":600},{"$f":"INDEX($C43:$O43,,SelectedPeriodColumn)/INDEX($C$72:$O$72,,SelectedPeriodColumn)","v":{"v":0.04734848484848485,"d":"4.7%"}}]
[]
["Unesite ili izmenite stavku troškova u ćeliji s desne strane i mesečne iznose u ćelijama C45 do N47. Godišnji iznos se automatski izračunava u ćelijama O45 do O47 a procenat povećanja u ćelijama P45 do P47. Mini-grafikon se automatski ažurira u ćeliji Q45. Sledeće uputstvo se nalazi u ćeliji A49.","obuka i naknade",{"$f":"SUM(C46:C47)","v":0},0,750,0,0,650,0,0,650,0,0,0,{"$f":"SUM(C45:N45)","v":{"v":2050,"d":"2,050"}},{"$f":"INDEX($C45:$O45,,SelectedPeriodColumn)/INDEX($C$72:$O$72,,SelectedPeriodColumn)","v":{"v":0,"d":"0.0%"}}]
[null,null,0,0,500,0,0,500,0,0,500,0,0,0,{"$f":"SUM(C46:N46)","v":{"v":1500,"d":"1,500"}},{"$f":"INDEX($C46:$O46,,SelectedPeriodColumn)/INDEX($C$72:$O$72,,SelectedPeriodColumn)","v":{"v":0,"d":"0.0%"}}]
[null,null,0,0,250,0,0,150,0,0,150,0,0,0,{"$f":"SUM(C47:N47)","v":550},{"$f":"INDEX($C47:$O47,,SelectedPeriodColumn)/INDEX($C$72:$O$72,,SelectedPeriodColumn)","v":{"v":0,"d":"0.0%"}}]
[]
["Unesite ili izmenite stavku troškova u ćeliji s desne strane i mesečne iznose u ćelijama C49 do N51. Godišnji iznos se automatski izračunava u ćelijama O49 do O51 a procenat povećanja u ćelijama P49 do P51. Mini-grafikon se automatski ažurira u ćeliji Q49. Sledeće uputstvo se nalazi u ćeliji A53.","knjige i zalihe",{"$f":"SUM(C50:C51)","v":0},0,325,20,20,325,10,10,400,15,15,15,{"$f":"SUM(C49:N49)","v":{"v":1155,"d":"1,155"}},{"$f":"INDEX($C49:$O49,,SelectedPeriodColumn)/INDEX($C$72:$O$72,,SelectedPeriodColumn)","v":{"v":0,"d":"0.0%"}}]
[null,null,0,0,225,0,0,275,0,0,325,0,0,0,{"$f":"SUM(C50:N50)","v":825},{"$f":"INDEX($C50:$O50,,SelectedPeriodColumn)/INDEX($C$72:$O$72,,SelectedPeriodColumn)","v":{"v":0,"d":"0.0%"}}]
[null,null,0,0,100,20,20,50,10,10,75,15,15,15,{"$f":"SUM(C51:N51)","v":330},{"$f":"INDEX($C51:$O51,,SelectedPeriodColumn)/INDEX($C$72:$O$72,,SelectedPeriodColumn)","v":{"v":0,"d":"0.0%"}}]
[]
["Unesite ili izmenite stavku troškova u ćeliji s desne strane i mesečne iznose u ćelijama C53 do N5. Godišnji iznos se automatski izračunava u ćelijama O53do O57 a procenat povećanja u ćelijama P53 do P57. Mini-grafikon se automatski ažurira u ćeliji Q53. Sledeće uputstvo se nalazi u ćeliji A59.","Prevoz",{"$f":"SUM(C54:C57)","v":224},174,174,219,174,174,274,219,174,174,224,269,{"$f":"SUM(C53:N53)","v":{"v":2473,"d":"2,473"}},{"$f":"INDEX($C53:$O53,,SelectedPeriodColumn)/INDEX($C$72:$O$72,,SelectedPeriodColumn)","v":{"v":0.21212121212121213,"d":"21.2%"}}]
[null,null,30,30,30,75,30,30,30,75,30,30,30,75,{"$f":"SUM(C54:N54)","v":495},{"$f":"INDEX($C54:$O54,,SelectedPeriodColumn)/INDEX($C$72:$O$72,,SelectedPeriodColumn)","v":{"v":0.028409090909090908,"d":"2.8%"}}]
[null,null,129,129,129,129,129,129,129,129,129,129,129,129,{"$f":"SUM(C55:N55)","v":{"v":1548,"d":"1,548"}},{"$f":"INDEX($C55:$O55,,SelectedPeriodColumn)/INDEX($C$72:$O$72,,SelectedPeriodColumn)","v":{"v":0.12215909090909091,"d":"12.2%"}}]
[null,null,15,15,15,15,15,15,15,15,15,15,15,15,{"$f":"SUM(C56:N56)","v":180},{"$f":"INDEX($C56:$O56,,SelectedPeriodColumn)/INDEX($C$72:$O$72,,SelectedPeriodColumn)","v":{"v":0.014204545454545454,"d":"1.4%"}}]
[null,null,50,0,0,0,0,0,100,0,0,0,50,50,{"$f":"SUM(C57:N57)","v":250},{"$f":"INDEX($C57:$O57,,SelectedPeriodColumn)/INDEX($C$72:$O$72,,SelectedPeriodColumn)","v":{"v":0.04734848484848485,"d":"4.7%"}}]
[]
["Unesite ili izmenite stavku troškova u ćeliji s desne strane i mesečne iznose u ćelijama C59 do N65. Godišnji iznos se automatski izračunava u ćelijama O59 do O65 a procenat povećanja u ćelijama P59 do P65. Mini-grafikon se automatski ažurira u ćeliji Q59. Sledeće uputstvo se nalazi u ćeliji A67.","Opcionalni",{"$f":"SUM(C60:C65)","v":69},69,169,369,419,444,419,419,394,394,419,469,{"$f":"SUM(C59:N59)","v":{"v":4053,"d":"4,053"}},{"$f":"INDEX($C59:$O59,,SelectedPeriodColumn)/INDEX($C$72:$O$72,,SelectedPeriodColumn)","v":{"v":0.06534090909090909,"d":"6.5%"}}]
[null,null,0,0,0,50,100,100,100,100,75,75,100,100,800,{"$f":"INDEX($C60:$O60,,SelectedPeriodColumn)/INDEX($C$72:$O$72,,SelectedPeriodColumn)","v":{"v":0,"d":"0.0%"}}]
[null,null,69,69,69,69,69,69,69,69,69,69,69,69,828,{"$f":"INDEX($C61:$O61,,SelectedPeriodColumn)/INDEX($C$72:$O$72,,SelectedPeriodColumn)","v":{"v":0.06534090909090909,"d":"6.5%"}}]
[null,null,0,0,0,0,0,25,0,0,0,0,0,50,75,{"$f":"INDEX($C62:$O62,,SelectedPeriodColumn)/INDEX($C$72:$O$72,,SelectedPeriodColumn)","v":{"v":0,"d":"0.0%"}}]
[null,null,0,0,100,100,100,100,100,100,100,100,100,100,{"v":1000,"d":"1,000"},{"$f":"INDEX($C63:$O63,,SelectedPeriodColumn)/INDEX($C$72:$O$72,,SelectedPeriodColumn)","v":{"v":0,"d":"0.0%"}}]
[null,null,0,0,0,50,50,50,50,50,50,50,50,50,450,{"$f":"INDEX($C64:$O64,,SelectedPeriodColumn)/INDEX($C$72:$O$72,,SelectedPeriodColumn)","v":{"v":0,"d":"0.0%"}}]
[null,null,0,0,0,100,100,100,100,100,100,100,100,100,900,{"$f":"INDEX($C65:$O65,,SelectedPeriodColumn)/INDEX($C$72:$O$72,,SelectedPeriodColumn)","v":{"v":0,"d":"0.0%"}}]
[]
["Unesite ili izmenite stavku troškova u ćeliji s desne strane i mesečne iznose u ćelijama C67 do N70. Godišnji iznos se automatski izračunava u ćelijama O67 do O70 a procenat povećanja u ćelijama P67 do P70. Mini-grafikon se automatski ažurira u ćeliji Q67. Sledeće uputstvo nalazi se u ćeliji A72.","Ostali troškovi",{"$f":"SUM(C68:C70)","v":198},{"$f":"SUM(D68:D70)","v":198},250,253,243,238,233,258,263,268,268,268,{"$f":"SUM(C67:N67)","v":{"v":2938,"d":"2,938"}},{"$f":"INDEX($C67:$O67,,SelectedPeriodColumn)/INDEX($C$72:$O$72,,SelectedPeriodColumn)","v":{"v":0.1875,"d":"18.8%"}}]
[null,null,123,123,123,123,123,123,123,123,123,123,123,123,{"$f":"SUM(C68:N68)","v":{"v":1476,"d":"1,476"}},{"$f":"INDEX($C68:$O68,,SelectedPeriodColumn)/INDEX($C$72:$O$72,,SelectedPeriodColumn)","v":{"v":0.11647727272727272,"d":"11.6%"}}]
[null,null,0,0,52,55,45,40,35,60,65,70,70,70,{"$f":"SUM(C69:N69)","v":562},{"$f":"INDEX($C69:$O69,,SelectedPeriodColumn)/INDEX($C$72:$O$72,,SelectedPeriodColumn)","v":{"v":0,"d":"0.0%"}}]
[null,null,75,75,75,75,75,75,75,75,75,75,75,75,{"$f":"SUM(C70:N70)","v":900},{"$f":"INDEX($C70:$O70,,SelectedPeriodColumn)/INDEX($C$72:$O$72,,SelectedPeriodColumn)","v":{"v":0.07102272727272728,"d":"7.1%"}}]
[]
["Oznaka „Ukupni troškovi“ je u ćeliji sa desne strane. Ukupni troškovi za svaki mesec se automatski izračunavaju u ćelijama C72 do N72, godišnji troškovi u O72, i procenat povećanja u ćeliji P72. Mini-grafikon se automatski ažurira u ćeliji Q72.","UKUPAN RASHOD",{"$f":"SUM(C40,C45,C49,C53,C59,C67)","v":{"v":1056,"d":"1,056"}},{"v":1006,"d":"1,006"},{"v":2233,"d":"2,233"},{"v":1426,"d":"1,426"},{"v":1421,"d":"1,421"},{"v":2396,"d":"2,396"},{"v":1501,"d":"1,501"},{"v":1471,"d":"1,471"},{"v":2446,"d":"2,446"},{"v":1416,"d":"1,416"},{"v":1491,"d":"1,491"},{"v":1586,"d":"1,586"},{"$f":"SUM(C72:N72)","v":{"v":19449,"d":"19,449"}},{"$f":"INDEX($C72:$O72,,SelectedPeriodColumn)/INDEX($C$72:$O$72,,SelectedPeriodColumn)","v":{"v":1,"d":"100.0%"}}]

{"sheet":"chart_calcs","index":2,"n_rows":23,"n_cols":16,"rows_kept":23,"hidden":true}
["*** Ovaj list bi trebalo da ostane skriven ***"]
[]
[{"$nulls":3},{"$f":"IFERROR(LOWER(TEXT(VALUE(SelectedPeriod&\" 1\"),\"mmmm\")),\"godina\")","v":"january"}]
[]
[{"$nulls":3},"Dinamički naslovi grafikona"]
[{"$nulls":3},{"$f":"\"prihod u \"&D3&\":\"","v":"prihod u january:"},null,{"$f":"TEXT(INDEX('Mesečni budžet za koledž'!$C$37:$O$37,,SelectedPeriodColumn),\"#.## RSD\")","v":{"$error":"#VALUE!"}}]
[{"$nulls":3},{"$f":"\"troškovi u \"&D3&\":\"","v":"troškovi u january:"},null,{"$f":"TEXT(INDEX('Mesečni budžet za koledž'!$C$72:$O$72,,SelectedPeriodColumn),\"#.## RSD\")","v":{"$error":"#VALUE!"}}]
[{"$nulls":3},{"$f":"\"protok gotovine u \"&D3&\":\"","v":"protok gotovine u january:"},{"$f":"INDEX('Mesečni budžet za koledž'!C28:O28,ScrollBarValue)","v":169},{"$f":"TEXT(E8,\"#.## RSD\")","v":"169 RSD"}]
[]
[]
[]
[{"$nulls":3},{"$f":"LOWER('Mesečni budžet za koledž'!C27)","v":"jan "},{"$f":"LOWER('Mesečni budžet za koledž'!D27)","v":"feb "},{"$f":"LOWER('Mesečni budžet za koledž'!E27)","v":"mar "},{"$f":"LOWER('Mesečni budžet za koledž'!F27)","v":"apr "},{"$f":"LOWER('Mesečni budžet za koledž'!G27)","v":"may "},{"$f":"LOWER('Mesečni budžet za koledž'!H27)","v":"jun "},{"$f":"LOWER('Mesečni budžet za koledž'!I27)","v":"jul "},{"$f":"LOWER('Mesečni budžet za koledž'!J27)","v":"aug "},{"$f":"LOWER('Mesečni budžet za koledž'!K27)","v":"sep "},{"$f":"LOWER('Mesečni budžet za koledž'!L27)","v":"oct "},{"$f":"LOWER('Mesečni budžet za koledž'!M27)","v":"nov "},{"$f":"LOWER('Mesečni budžet za koledž'!N27)","v":"dec "},{"$f":"LOWER('Mesečni budžet za koledž'!O27)","v":"godina  "}]
[null,null,"Vrednost trake za pomeranje: ",1]
[null,null,"Grafikon protoka novca: ",{"$f":"IF(SelectedPeriod='Mesečni budžet za koledž'!C$31,IF('Mesečni budžet za koledž'!$C$28:$O$28>=0,'Mesečni budžet za koledž'!$C$28:$O$28,NA()),NA())","v":69},{"$f":"IF(SelectedPeriod='Mesečni budžet za koledž'!D$31,IF('Mesečni budžet za koledž'!$C$28:$O$28>=0,'Mesečni budžet za koledž'!$C$28:$O$28,NA()),NA())","v":{"$error":"#N/A"}},{"$f":"IF(SelectedPeriod='Mesečni budžet za koledž'!E$31,IF('Mesečni budžet za koledž'!$C$28:$O$28>=0,'Mesečni budžet za koledž'!$C$28:$O$28,NA()),NA())","v":{"$error":"#N/A"}},{"$f":"IF(SelectedPeriod='Mesečni budžet za koledž'!F$31,IF('Mesečni budžet za koledž'!$C$28:$O$28>=0,'Mesečni budžet za koledž'!$C$28:$O$28,NA()),NA())","v":{"$error":"#N/A"}},{"$f":"IF(SelectedPeriod='Mesečni budžet za koledž'!G$31,IF('Mesečni budžet za koledž'!$C$28:$O$28>=0,'Mesečni budžet za koledž'!$C$28:$O$28,NA()),NA())","v":{"$error":"#N/A"}},{"$f":"IF(SelectedPeriod='Mesečni budžet za koledž'!H$31,IF('Mesečni budžet za koledž'!$C$28:$O$28>=0,'Mesečni budžet za koledž'!$C$28:$O$28,NA()),NA())","v":{"$error":"#N/A"}},{"$f":"IF(SelectedPeriod='Mesečni budžet za koledž'!I$31,IF('Mesečni budžet za koledž'!$C$28:$O$28>=0,'Mesečni budžet za koledž'!$C$28:$O$28,NA()),NA())","v":{"$error":"#N/A"}},{"$f":"IF(SelectedPeriod='Mesečni budžet za koledž'!J$31,IF('Mesečni budžet za koledž'!$C$28:$O$28>=0,'Mesečni budžet za koledž'!$C$28:$O$28,NA()),NA())","v":{"$error":"#N/A"}},{"$f":"IF(SelectedPeriod='Mesečni budžet za koledž'!K$31,IF('Mesečni budžet za koledž'!$C$28:$O$28>=0,'Mesečni budžet za koledž'!$C$28:$O$28,NA()),NA())","v":{"$error":"#N/A"}},{"$f":"IF(SelectedPeriod='Mesečni budžet za koledž'!L$31,IF('Mesečni budžet za koledž'!$C$28:$O$28>=0,'Mesečni budžet za koledž'!$C$28:$O$28,NA()),NA())","v":{"$error":"#N/A"}},{"$f":"IF(SelectedPeriod='Mesečni budžet za koledž'!M$31,IF('Mesečni budžet za koledž'!$C$28:$O$28>=0,'Mesečni budžet za koledž'!$C$28:$O$28,NA()),NA())","v":{"$error":"#N/A"}},{"$f":"IF(SelectedPeriod='Mesečni budžet za koledž'!N$31,IF('Mesečni budžet za koledž'!$C$28:$O$28>=0,'Mesečni budžet za koledž'!$C$28:$O$28,NA()),NA())","v":{"$error":"#N/A"}},{"$f":"IF(SelectedPeriod='Mesečni budžet za koledž'!O$31,IF('Mesečni budžet za koledž'!$C$28:$O$28>=0,'Mesečni budžet za koledž'!$C$28:$O$28,NA()),NA())","v":{"$error":"#N/A"}}]
[null,null,"Kumulativno: ",{"$f":"IF(SelectedPeriod='Mesečni budžet za koledž'!C$31,IF('Mesečni budžet za koledž'!$C$28:$O$28<0,'Mesečni budžet za koledž'!$C$28:$O$28,NA()),NA())","v":{"$error":"#N/A"}},{"$f":"IF(SelectedPeriod='Mesečni budžet za koledž'!D$31,IF('Mesečni budžet za koledž'!$C$28:$O$28<0,'Mesečni budžet za koledž'!$C$28:$O$28,NA()),NA())","v":{"$error":"#N/A"}},{"$f":"IF(SelectedPeriod='Mesečni budžet za koledž'!E$31,IF('Mesečni budžet za koledž'!$C$28:$O$28<0,'Mesečni budžet za koledž'!$C$28:$O$28,NA()),NA())","v":{"$error":"#N/A"}},{"$f":"IF(SelectedPeriod='Mesečni budžet za koledž'!F$31,IF('Mesečni budžet za koledž'!$C$28:$O$28<0,'Mesečni budžet za koledž'!$C$28:$O$28,NA()),NA())","v":{"$error":"#N/A"}},{"$f":"IF(SelectedPeriod='Mesečni budžet za koledž'!G$31,IF('Mesečni budžet za koledž'!$C$28:$O$28<0,'Mesečni budžet za koledž'!$C$28:$O$28,NA()),NA())","v":{"$error":"#N/A"}},{"$f":"IF(SelectedPeriod='Mesečni budžet za koledž'!H$31,IF('Mesečni budžet za koledž'!$C$28:$O$28<0,'Mesečni budžet za koledž'!$C$28:$O$28,NA()),NA())","v":{"$error":"#N/A"}},{"$f":"IF(SelectedPeriod='Mesečni budžet za koledž'!I$31,IF('Mesečni budžet za koledž'!$C$28:$O$28<0,'Mesečni budžet za koledž'!$C$28:$O$28,NA()),NA())","v":{"$error":"#N/A"}},{"$f":"IF(SelectedPeriod='Mesečni budžet za koledž'!J$31,IF('Mesečni budžet za koledž'!$C$28:$O$28<0,'Mesečni budžet za koledž'!$C$28:$O$28,NA()),NA())","v":{"$error":"#N/A"}},{"$f":"IF(SelectedPeriod='Mesečni budžet za koledž'!K$31,IF('Mesečni budžet za koledž'!$C$28:$O$28<0,'Mesečni budžet za koledž'!$C$28:$O$28,NA()),NA())","v":{"$error":"#N/A"}},{"$f":"IF(SelectedPeriod='Mesečni budžet za koledž'!L$31,IF('Mesečni budžet za koledž'!$C$28:$O$28<0,'Mesečni budžet za koledž'!$C$28:$O$28,NA()),NA())","v":{"$error":"#N/A"}},{"$f":"IF(SelectedPeriod='Mesečni budžet za koledž'!M$31,IF('Mesečni budžet za koledž'!$C$28:$O$28<0,'Mesečni budžet za koledž'!$C$28:$O$28,NA()),NA())","v":{"$error":"#N/A"}},{"$f":"IF(SelectedPeriod='Mesečni budžet za koledž'!N$31,IF('Mesečni budžet za koledž'!$C$28:$O$28<0,'Mesečni budžet za koledž'!$C$28:$O$28,NA()),NA())","v":{"$error":"#N/A"}},{"$f":"IF(SelectedPeriod='Mesečni budžet za koledž'!O$31,IF('Mesečni budžet za koledž'!$C$28:$O$28<0,'Mesečni budžet za koledž'!$C$28:$O$28,NA()),NA())","v":{"$error":"#N/A"}}]
[]
[]
[null,null,"PODACI GRAFIKONA PRIHODA"]
[null,null,"Finansijska pomoć (donacije, stipendije, krediti) koji su vam isplaćeni",{"$f":"'Mesečni budžet za koledž'!P32","v":{"v":0,"d":"0.0%"}}]
[null,null,"Plate nakon oporezivanja",{"$f":"'Mesečni budžet za koledž'!P33","v":{"v":0.3673469387755102,"d":"36.7%"}}]
[null,null,"Finansijska pomoć od porodice",{"$f":"'Mesečni budžet za koledž'!P34","v":{"v":0.16326530612244897,"d":"16.3%"}}]
[null,null,"Isplate iz ušteđevine",{"$f":"'Mesečni budžet za koledž'!P35","v":{"v":0.40816326530612246,"d":"40.8%"}}]
[null,null,"Ostalo (podrška za dete, javnu pomoć, pokloni itd.)",{"$f":"'Mesečni budžet za koledž'!P36","v":{"v":0.061224489795918366,"d":"6.1%"}}]